fUST/lending_fUST_20260117
["ID","MTS","AMOUNT","RATE_DAILY","PERIOD"]
[402343206,1768661458764,-500.0,0.00016712,3]
[402343208,1768661458774,-1777.6,0.00016712,3]
[402343210,1768661458784,-830.09,0.00016712,3]
[402343213,1768661458794,-500.0,0.00016712,3]
[402343215,1768661458804,-500.0,0.00016712,3]
[402343216,1768661458813,-500.0,0.00016712,3]
[402343218,1768661458823,-582.36,0.00016712,3]
[402343221,1768661458833,-887.42,0.00016712,3]
[402343223,1768661458842,-500.0,0.00016712,3]
[402343224,1768661458851,-500.0,0.00016712,3]
[402343226,1768661458861,-500.0,0.00016712,3]
[402343228,1768661458870,-500.0,0.00016712,3]
[402343230,1768661458880,-2401.87,0.00016712,3]
[402343233,1768661458889,-500.0,0.00016712,3]
[402343235,1768661458899,-1051.13,0.00016712,3]
[402343236,1768661458908,-500.0,0.00016712,3]
[402343238,1768661458917,-500.0,0.00016712,3]
[402343240,1768661458926,-775.93,0.00016712,3]
[402343242,1768661458935,-500.0,0.00016712,3]
[402343244,1768661458945,-500.0,0.00016712,3]
[402343246,1768661458953,-1463.58,0.00016712,3]
[402343248,1768661458963,-500.0,0.00016712,3]
[402343250,1768661458972,-500.0,0.00016712,3]
[402343252,1768661458982,-511.21,0.00016712,3]
[402343254,1768661458991,-500.0,0.00016712,3]
[402343256,1768661459000,-833.11,0.00016712,3]
[402343258,1768661459010,-1523.15,0.00016712,3]
[402343260,1768661459019,-534.98,0.00016712,3]
[402343262,1768661459028,-593.18,0.00016712,3]
[402343264,1768661459039,-500.0,0.00016712,3]
[402343266,1768661459048,-692.98,0.00016712,3]
[402343268,1768661459057,-500.0,0.00016712,3]
[402343270,1768661459066,-529.4766639,0.00016712,3]
[402343272,1768661459075,-500.0,0.00016712,3]
[402343274,1768661459084,-500.0,0.00016712,3]
[402343276,1768661459093,-500.0,0.00016712,3]
[402343278,1768661459102,-590.01,0.00016712,3]
[402343280,1768661459111,-302.42547068,0.00016712,3]
[402343282,1768661459120,-626.27,0.00016712,3]
[402343284,1768661459129,-500.0,0.00016712,3]
[402343285,1768661459138,-500.0,0.00016712,3]
[402343287,1768661459147,-1613.44,0.00016712,3]
[402343289,1768661459156,-500.0,0.00016712,3]
[402343291,1768661459166,-643.39,0.00016712,3]
[402343293,1768661459175,-500.0,0.00016712,3]
[402343295,1768661459185,-500.0,0.00016712,3]
[402343297,1768661459194,-500.0,0.00016712,3]
[402343300,1768661459203,-1020.04,0.00016712,3]
[402343301,1768661459213,-500.0,0.00016712,3]
[402343304,1768661459223,-500.0,0.00016712,3]
[402343306,1768661459232,-500.0,0.00016712,3]
[402343308,1768661459243,-604.25264706,0.00016712,3]
[402343310,1768661459253,-500.0,0.00016712,3]
[402343312,1768661459262,-500.0,0.00016712,3]
[402343314,1768661459272,-500.0,0.00016712,3]
[402343316,1768661459283,-500.0,0.00016712,3]
[402343317,1768661459294,-500.0,0.00016712,3]
[402343320,1768661459305,-1460.86,0.00016712,3]
[402343321,1768661459315,-2617.38,0.00016712,3]
[402343324,1768661459324,-1046.32,0.00016712,3]
[402343325,1768661459334,-500.0,0.00016712,3]
[402343327,1768661459343,-595.68293991,0.00016712,3]
[402343329,1768661459352,-1516.4,0.00016712,3]
[402343332,1768661459362,-500.0,0.00016712,3]
[402343333,1768661459371,-500.0,0.00016712,3]
[402343336,1768661459380,-500.0,0.00016712,3]
[402343337,1768661459390,-1783.62,0.00016712,3]
[402343339,1768661459399,-538.97966179,0.00016712,3]
[402343342,1768661459409,-500.0,0.00016712,3]
[402343344,1768661459419,-1037.02,0.00016712,3]
[402343346,1768661459429,-794.97,0.00016712,3]
[402343347,1768661459439,-500.0,0.00016712,3]
[402343349,1768661459448,-500.0,0.00016712,3]
[402343351,1768661459457,-1082.97,0.00016712,3]
[402343354,1768661459466,-970.02,0.00016712,3]
[402343356,1768661459476,-598.07,0.00016712,3]
[402343358,1768661459485,-500.0,0.00016712,3]
[402343360,1768661459495,-534.25045514,0.00016712,3]
[402343362,1768661459505,-500.0,0.00016712,3]
[402343364,1768661459515,-500.0,0.00016712,3]
[402343366,1768661459524,-500.0,0.00016712,3]
[402343368,1768661459533,-1061.32,0.00016712,3]
[402343370,1768661459542,-500.0,0.00016712,3]
[402343372,1768661459552,-2043.5,0.00016712,3]
[402343374,1768661459561,-1025.82,0.00016712,3]
[402343376,1768661459570,-500.0,0.00016712,3]
[402343378,1768661459580,-551.15,0.00016712,3]
[402343380,1768661459589,-500.0,0.00016712,3]
[402343382,1768661459599,-500.0,0.00016712,3]
[402343384,1768661459608,-2020.94,0.00016712,3]
[402343386,1768661459617,-500.0,0.00016712,3]
[402343388,1768661459626,-1407.02,0.00016712,3]
[402343390,1768661459637,-947.11,0.00016712,3]
[402343392,1768661459646,-238.33114,0.00016712,3]
[402343394,1768661459655,-526.7,0.00016712,3]
[402343396,1768661459664,-500.0,0.00016712,3]
[402343398,1768661459674,-1314.5,0.00016712,3]
[402343400,1768661459683,-500.0,0.00016712,3]
[402343402,1768661459693,-500.0,0.00016712,3]
[402343404,1768661459705,-500.0,0.00016712,3]
[402343406,1768661459715,-500.0,0.00016712,3]
[402343408,1768661459724,-517.02,0.00016712,3]
[402343410,1768661459734,-740.24,0.00016712,3]
[402343412,1768661459744,-1000.0,0.00016712,2]
[402343414,1768661459754,-789.24,0.00016712,3]
[402343416,1768661459764,-500.0,0.00016712,3]
[402343418,1768661459775,-596.93,0.00016712,3]
[402343420,1768661459784,-500.0,0.00016712,3]
[402343422,1768661459794,-500.0,0.00016712,3]
[402343424,1768661459803,-500.0,0.00016712,3]
[402343426,1768661459813,-500.0,0.00016712,3]
[402343428,1768661459822,-500.0,0.00016712,3]
[402343430,1768661459831,-660.85,0.00016712,3]
[402343432,1768661459841,-500.0,0.00016712,3]
[402343434,1768661459850,-500.0,0.00016712,3]
[402343436,1768661459859,-500.0,0.00016712,3]
[402343438,1768661459869,-584.78,0.00016712,3]
[402343440,1768661459878,-500.0,0.00016712,3]
[402343442,1768661459888,-500.0,0.00016712,3]
[402343443,1768661459898,-500.0,0.00016712,3]
[402343445,1768661459908,-500.0,0.00016712,3]
[402343447,1768661459917,-1310.48,0.00016712,3]
[402343450,1768661459931,-551.9,0.00016712,3]
[402343452,1768661459941,-500.0,0.00016712,3]
[402343454,1768661459951,-500.0,0.00016712,3]
[402343456,1768661459962,-500.0,0.00016712,3]
[402343458,1768661459971,-500.0,0.00016712,3]
[402343460,1768661459980,-500.0,0.00016712,3]
[402343461,1768661459990,-864.77,0.00016712,3]
[402343464,1768661459999,-500.0,0.00016712,3]
[402343465,1768661460010,-861.68,0.00016712,3]
[402343467,1768661460019,-536.72,0.00016712,3]
[402343469,1768661460029,-500.0,0.00016712,3]
[402343471,1768661460039,-197.65009563,0.00016712,3]
[402343473,1768661460048,-802.62,0.00016712,3]
[402343475,1768661460058,-500.0,0.00016712,3]
[402343477,1768661460067,-1746.05,0.00016712,3]
[402343479,1768661460076,-500.0,0.00016712,3]
[402343481,1768661460085,-500.0,0.00016712,3]
[402343483,1768661460094,-1553.75,0.00016712,3]
[402343485,1768661460103,-500.0,0.00016712,3]
[402343487,1768661460112,-500.0,0.00016712,3]
[402343489,1768661460120,-500.0,0.00016712,3]
[402343491,1768661460130,-500.0,0.00016712,3]
[402343493,1768661460139,-828.1,0.00016712,3]
[402343495,1768661460148,-500.0,0.00016712,3]
[402343497,1768661460157,-500.0,0.00016712,3]
[402343499,1768661460166,-587.43,0.00016712,3]
[402343501,1768661460175,-500.0,0.00016712,3]
[402343503,1768661460184,-500.0,0.00016712,3]
[402343505,1768661460193,-1263.03,0.00016712,3]
[402343507,1768661460202,-516.82,0.00016712,3]
[402343509,1768661460212,-500.0,0.00016712,3]
[402343510,1768661460222,-500.0,0.00016712,3]
[402343511,1768661460232,-992.52,0.00016712,3]
[402343512,1768661460241,-443.90722234,0.00016712,3]
[402343513,1768661460252,-1277.69,0.00016712,3]
[402343514,1768661460261,-500.0,0.00016712,3]
[402343515,1768661460271,-500.0,0.00016712,3]
[402343516,1768661460280,-500.0,0.00016712,3]
[402343518,1768661460289,-2165.22,0.00016712,3]
[402343520,1768661460299,-1522.68,0.00016712,3]
[402343522,1768661460308,-864.35,0.00016712,3]
[402343524,1768661460317,-500.0,0.00016712,3]
[402343526,1768661460326,-588.61,0.00016712,3]
[402343528,1768661460336,-300.946978,0.00016712,2]
[402343530,1768661460346,-696.22,0.00016712,3]
[402343551,1768661460534,-300.946978,0.00016712,2]
[402343554,1768661460552,-1032.73,0.00016712,3]
[402343556,1768661460562,-500.0,0.00016712,3]
[402343558,1768661460572,-500.0,0.00016712,3]
[402343560,1768661460581,-1467.06,0.00016712,3]
[402343562,1768661460591,-300.946978,0.00016712,2]
[402343564,1768661460601,-500.0,0.00016712,3]
[402343566,1768661460610,-300.946978,0.00016712,2]
[402343568,1768661460621,-500.0,0.00016712,3]
[402343571,1768661460631,-500.0,0.00016712,3]
[402343573,1768661460640,-500.0,0.00016712,3]
[402343575,1768661460650,-500.0,0.00016712,3]
[402343577,1768661460659,-500.0,0.00016712,3]
[402343579,1768661460668,-500.0,0.00016712,3]
[402343581,1768661460678,-500.0,0.00016712,3]
[402343583,1768661460687,-500.0,0.00016712,3]
[402343585,1768661460696,-500.0,0.00016712,3]
[402343587,1768661460706,-610.68,0.00016712,3]
[402343589,1768661460717,-500.0,0.00016712,3]
[402343591,1768661460727,-1520.34,0.00016712,3]
[402343593,1768661460737,-500.0,0.00016712,3]
[402343595,1768661460746,-523.94812621,0.00016712,3]
[402343597,1768661460756,-500.0,0.00016712,3]
[402343599,1768661460766,-514.7,0.00016712,3]
[402343601,1768661460775,-500.0,0.00016712,3]
[402343603,1768661460787,-1254.34,0.00016712,3]
[402343605,1768661460795,-500.0,0.00016712,3]
[402343607,1768661460804,-500.0,0.00016712,3]
[402343609,1768661460813,-500.0,0.00016712,3]
[402343611,1768661460823,-500.0,0.00016712,3]
[402343613,1768661460832,-500.0,0.00016712,3]
[402343615,1768661460842,-500.0,0.00016712,3]
[402343617,1768661460852,-500.0,0.00016712,3]
[402343619,1768661460862,-1546.36,0.00016712,3]
[402343621,1768661460871,-721.16,0.00016712,3]
[402343623,1768661460880,-1352.6,0.00016712,3]
[402343625,1768661460890,-14920.45,0.00016712,3]
[402343627,1768661460900,-3641.66,0.00016712,3]
[402343629,1768661460910,-1465.51,0.00016712,3]
[402343632,1768661460920,-1082.53,0.00016712,3]
[402343634,1768661460929,-676.48,0.00016712,3]
[402343635,1768661460938,-500.0,0.00016712,3]
[402343637,1768661460948,-349.90564396,0.00016712,3]
[402343639,1768661460957,-500.0,0.00016712,3]
[402343641,1768661460967,-561.96,0.00016712,3]
[402343644,1768661460976,-2115.14,0.00016712,3]
[402343646,1768661460986,-500.0,0.00016712,3]
[402343648,1768661460995,-703.56,0.00016712,3]
[402343650,1768661461004,-500.0,0.00016712,3]
[402343652,1768661461013,-500.0,0.00016712,3]
[402343654,1768661461023,-1581.57,0.00016712,3]
[402343656,1768661461033,-1476.24,0.00016712,3]
[402343658,1768661461042,-1448.75,0.00016712,3]
[402343660,1768661461051,-500.0,0.00016712,3]
[402343662,1768661461061,-661.85,0.00016712,3]
[402343664,1768661461070,-500.0,0.00016712,3]
[402343666,1768661461079,-1922.86,0.00016712,3]
[402343668,1768661461088,-957.46,0.00016712,3]
[402343670,1768661461097,-500.0,0.00016712,3]
[402343672,1768661461107,-500.0,0.00016712,3]
[402343673,1768661461116,-500.0,0.00016712,3]
[402343676,1768661461126,-802.37,0.00016712,3]
[402343677,1768661461135,-500.0,0.00016712,3]
[402343680,1768661461144,-500.0,0.00016712,3]
[402343682,1768661461154,-710.51,0.00016712,3]
[402343684,1768661461163,-662.64,0.00016712,3]
[402343686,1768661461173,-1152.1,0.00016712,3]
[402343688,1768661461182,-2147.02,0.00016712,3]
[402343690,1768661461192,-500.0,0.00016712,3]
[402343692,1768661461202,-500.0,0.00016712,3]
[402343694,1768661461212,-964.66,0.00016712,3]
[402343696,1768661461221,-500.0,0.00016712,3]
[402343697,1768661461231,-681.74,0.00016712,3]
[402343700,1768661461240,-1524.91,0.00016712,3]
[402343701,1768661461250,-151.0,0.00016712,2]
[402343704,1768661461260,-500.0,0.00016712,3]
[402343705,1768661461270,-151.0,0.00016712,2]
[402343708,1768661461281,-677.8,0.00016712,3]
[402343709,1768661461293,-500.0,0.00016712,3]
[402343711,1768661461303,-151.0,0.00016712,2]
[402343713,1768661461312,-500.0,0.00016712,3]
[402343715,1768661461321,-500.0,0.00016712,3]
[402343717,1768661461330,-500.0,0.00016712,3]
[402343719,1768661461339,-500.0,0.00016712,3]
[402343722,1768661461349,-500.0,0.00016712,3]
[402343724,1768661461358,-1115.78,0.00016712,3]
[402343726,1768661461367,-753.38,0.00016712,3]
[402343728,1768661461376,-500.0,0.00016712,3]
[402343730,1768661461385,-500.0,0.00016712,3]
[402343731,1768661461394,-757.17,0.00016712,3]
[402343733,1768661461404,-500.0,0.00016712,3]
[402343735,1768661461413,-500.0,0.00016712,3]
[402343738,1768661461422,-500.0,0.00016712,3]
[402343740,1768661461431,-537.73,0.00016712,3]
[402343742,1768661461441,-1800.98,0.00016712,3]
[402343744,1768661461450,-500.0,0.00016712,3]
[402343745,1768661461459,-500.0,0.00016712,3]
[402343747,1768661461468,-939.73,0.00016712,3]
[402343750,1768661461478,-952.1,0.00016712,3]
[402343752,1768661461488,-1093.56,0.00016712,3]
[402343753,1768661461497,-1386.86,0.00016712,3]
[402343756,1768661461507,-348.9788039,0.00016712,3]
[402343757,1768661461516,-980.85,0.00016712,3]
[402343760,1768661461527,-930.93,0.00016712,3]
[402343761,1768661461538,-594.6,0.00016712,3]
[402343764,1768661461547,-500.0,0.00016712,3]
[402343765,1768661461556,-500.0,0.00016712,3]
[402343767,1768661461565,-612.91517649,0.00016712,3]
[402343770,1768661461575,-500.07551483,0.00016712,3]
[402343772,1768661461586,-651.71,0.00016712,3]
[402343774,1768661461595,-1265.41,0.00016712,3]
[402343776,1768661461604,-1106.71,0.00016712,3]
[402343777,1768661461613,-1231.17,0.00016712,3]
[402343779,1768661461624,-500.0,0.00016712,3]
[402343781,1768661461633,-500.0,0.00016712,3]
[402343783,1768661461643,-500.0,0.00016712,3]
[402343785,1768661461653,-500.0,0.00016712,3]
[402343787,1768661461662,-500.0,0.00016712,2]
[402343789,1768661461671,-500.0,0.00016712,3]
[402343791,1768661461680,-500.0,0.00016712,3]
[402343793,1768661461689,-500.0,0.00016712,3]
[402343795,1768661461698,-1128.36,0.00016712,3]
[402343797,1768661461710,-500.0,0.00016712,3]
[402343799,1768661461719,-500.0,0.00016712,3]
[402343801,1768661461728,-590.66,0.00016712,3]
[402343803,1768661461738,-500.0,0.00016712,3]
[402343805,1768661461748,-1695.86,0.00016712,3]
[402343807,1768661461759,-500.0,0.00016712,3]
[402343809,1768661461768,-500.0,0.00016712,3]
[402343811,1768661461779,-500.0,0.00016712,3]
[402343813,1768661461788,-500.0,0.00016712,3]
[402343815,1768661461798,-500.0,0.00016712,3]
[402343817,1768661461807,-637.66379622,0.00016712,3]
[402343819,1768661461817,-500.0,0.00016712,3]
[402343821,1768661461826,-624.31598401,0.00016712,3]
[402343823,1768661461836,-500.0,0.00016712,3]
[402343825,1768661461846,-500.0,0.00016712,3]
[402343827,1768661461856,-1431.76,0.00016712,3]
[402343829,1768661461865,-500.0,0.00016712,3]
[402343831,1768661461875,-501.51,0.00016712,3]
[402343833,1768661461884,-500.0,0.00016712,3]
[402343835,1768661461894,-293.31393947,0.00016712,3]
[402343837,1768661461904,-1746.42,0.00016712,3]
[402343839,1768661461914,-500.0,0.00016712,3]
[402343841,1768661461923,-500.0,0.00016712,3]
[402343843,1768661461933,-500.0,0.00016712,3]
[402343845,1768661461943,-500.0,0.00016712,3]
[402343847,1768661461953,-500.0,0.00016712,3]
[402343849,1768661461963,-500.0,0.00016712,3]
[402343851,1768661461973,-864.9,0.00016712,3]
[402343853,1768661461983,-500.0,0.00016712,3]
[402343855,1768661461992,-1004.74,0.00016712,3]
[402343857,1768661462001,-500.0,0.00016712,3]
[402343859,1768661462011,-500.0,0.00016712,3]
[402343861,1768661462020,-2815.19,0.00016712,3]
[402343863,1768661462030,-2677.48,0.00016712,3]
[402343865,1768661462039,-500.0,0.00016712,3]
[402343867,1768661462050,-500.0,0.00016712,3]
[402343869,1768661462060,-500.0,0.00016712,3]
[402343871,1768661462070,-500.0,0.00016712,3]
[402343873,1768661462080,-500.0,0.00016712,3]
[402343875,1768661462089,-500.0,0.00016712,3]
[402343877,1768661462098,-502.42341707,0.00016712,3]
[402343879,1768661462108,-500.0,0.00016712,3]
[402343881,1768661462117,-500.0,0.00016712,3]
[402343883,1768661462127,-500.0,0.00016712,3]
[402343885,1768661462136,-500.0,0.00016712,3]
[402343887,1768661462145,-500.0,0.00016712,3]
[402343889,1768661462154,-838.53,0.00016712,3]
[402343891,1768661462163,-500.0,0.00016712,3]
[402343893,1768661462172,-500.0,0.00016712,3]
[402343895,1768661462182,-782.68,0.00016712,3]
[402343897,1768661462191,-743.81,0.00016712,3]
[402343899,1768661462201,-500.0,0.00016712,3]
[402343901,1768661462211,-1016.78,0.00016712,3]
[402343903,1768661462220,-500.0,0.00016712,3]
[402343905,1768661462230,-500.0,0.00016712,3]
[402343907,1768661462239,-500.0,0.00016712,3]
[402343909,1768661462249,-500.0,0.00016712,3]
[402343911,1768661462258,-938.18,0.00016712,3]
[402343913,1768661462268,-638.34,0.00016712,3]
[402343915,1768661462278,-1542.82,0.00016712,3]
[402343917,1768661462287,-500.0,0.00016712,3]
[402343919,1768661462296,-500.0,0.00016712,3]
[402343921,1768661462307,-500.0,0.00016712,3]
[402343923,1768661462316,-500.0,0.00016712,3]
[402343925,1768661462325,-500.0,0.00016712,3]
[402343927,1768661462334,-1046.6,0.00016712,3]
[402343929,1768661462344,-8462.21,0.00016712,3]
[402343931,1768661462353,-500.0,0.00016712,3]
[402343933,1768661462363,-500.0,0.00016712,3]
[402343935,1768661462373,-900.45,0.00016712,3]
[402343937,1768661462382,-500.0,0.00016712,3]
[402343939,1768661462392,-500.0,0.00016712,3]
[402343941,1768661462401,-1025.21,0.00016712,3]
[402343943,1768661462411,-500.0,0.00016712,3]
[402343945,1768661462420,-500.0,0.00016712,3]
[402343947,1768661462430,-500.0,0.00016712,3]
[402343948,1768661462439,-1701.87,0.00016712,3]
[402343951,1768661462449,-500.0,0.00016712,3]
[402343952,1768661462458,-500.0,0.00016712,3]
[402343955,1768661462468,-500.0,0.00016712,3]
[402343957,1768661462478,-500.0,0.00016712,3]
[402343959,1768661462487,-500.0,0.00016712,3]
[402343961,1768661462497,-952.05,0.00016712,3]
[402343963,1768661462507,-500.0,0.00016712,3]
[402343965,1768661462517,-241.75904852,0.00016712,3]
[402343967,1768661462527,-1296.31,0.00016712,3]
[402343968,1768661462537,-500.0,0.00016712,3]
[402343970,1768661462546,-500.0,0.00016712,3]
[402343972,1768661462556,-500.0,0.00016712,3]
[402343974,1768661462565,-790.38,0.00016712,3]
[402343977,1768661462575,-500.0,0.00016712,3]
[402343978,1768661462584,-500.0,0.00016712,3]
[402343981,1768661462594,-392.31626832,0.00016712,3]
[402343983,1768661462604,-500.0,0.00016712,3]
[402343985,1768661462614,-500.0,0.00016712,3]
[402343987,1768661462623,-1392.33,0.00016712,3]
[402343989,1768661462632,-500.0,0.00016712,3]
[402343991,1768661462642,-465.90987905,0.00016712,3]
[402343993,1768661462651,-589.43,0.00016712,3]
[402343995,1768661462661,-2164.81,0.00016712,3]
[402343996,1768661462670,-500.0,0.00016712,3]
[402343999,1768661462680,-855.31,0.00016712,3]
[402344001,1768661462690,-500.0,0.00016712,3]
[402344003,1768661462699,-500.0,0.00016712,3]
[402344005,1768661462712,-500.0,0.00016712,3]
[402344007,1768661462722,-791.1,0.00016712,3]
[402344008,1768661462732,-820.75,0.00016712,3]
[402344010,1768661462742,-500.0,0.00016712,3]
[402344012,1768661462752,-500.0,0.00016712,3]
[402344014,1768661462762,-500.0,0.00016712,3]
[402344016,1768661462771,-500.0,0.00016712,3]
[402344018,1768661462783,-500.0,0.00016712,3]
[402344020,1768661462793,-500.0,0.00016712,3]
[402344022,1768661462803,-500.0,0.00016712,3]
[402344024,1768661462813,-500.0,0.00016712,3]
[402344026,1768661462823,-686.29,0.00016712,3]
[402344028,1768661462832,-1162.52,0.00016712,3]
[402344030,1768661462842,-500.0,0.00016712,3]
[402344032,1768661462851,-500.0,0.00016712,3]
[402344034,1768661462862,-659.27,0.00016712,3]
[402344037,1768661462872,-500.0,0.00016712,3]
[402344038,1768661462882,-500.0,0.00016712,3]
[402344041,1768661462892,-583.05,0.00016712,3]
[402344042,1768661462902,-500.0,0.00016712,3]
[402344045,1768661462911,-500.0,0.00016712,3]
[402344047,1768661462922,-500.0,0.00016712,3]
[402344049,1768661462932,-500.0,0.00016712,3]
[402344051,1768661462942,-500.0,0.00016712,3]
[402344059,1768661463016,-531.2,0.00016712,3]
[402344061,1768661463025,-546.78,0.00016712,3]
[402344063,1768661463035,-500.0,0.00016712,3]
[402344065,1768661463045,-500.0,0.00016712,3]
[402344067,1768661463056,-500.0,0.00016712,3]
[402344069,1768661463065,-500.0,0.00016712,3]
[402344071,1768661463075,-2433.28,0.00016712,3]
[402344073,1768661463084,-523.83,0.00016712,3]
[402344075,1768661463093,-500.0,0.00016712,3]
[402344077,1768661463103,-500.0,0.00016712,3]
[402344079,1768661463113,-500.0,0.00016712,3]
[402344081,1768661463123,-605.26,0.00016712,3]
[402344083,1768661463132,-500.0,0.00016712,3]
[402344085,1768661463141,-500.0,0.00016712,3]
[402344087,1768661463151,-1203.0,0.00016712,3]
[402344089,1768661463160,-514.47,0.00016712,3]
[402344091,1768661463169,-500.0,0.00016712,3]
[402344093,1768661463179,-1673.57,0.00016712,3]
[402344095,1768661463188,-500.0,0.00016712,3]
[402344097,1768661463198,-602.45,0.00016712,3]
[402344099,1768661463208,-500.0,0.00016712,3]
[402344101,1768661463217,-3211.22,0.00016712,3]
[402344103,1768661463227,-500.0,0.00016712,3]
[402344105,1768661463236,-1140.99,0.00016712,3]
[402344107,1768661463245,-1139.13,0.00016712,3]
[402344109,1768661463254,-500.0,0.00016712,3]
[402344110,1768661463263,-500.0,0.00016712,3]
[402344113,1768661463274,-500.0,0.00016712,3]
[402344115,1768661463284,-500.0,0.00016712,3]
[402344116,1768661463293,-500.0,0.00016712,3]
[402344118,1768661463303,-500.0,0.00016712,3]
[402344120,1768661463312,-500.0,0.00016712,3]
[402344122,1768661463321,-500.0,0.00016712,3]
[402344124,1768661463331,-500.0,0.00016712,3]
[402344126,1768661463340,-500.0,0.00016712,3]
[402344128,1768661463350,-500.0,0.00016712,3]
[402344130,1768661463359,-601.82,0.00016712,3]
[402344132,1768661463368,-500.0,0.00016712,3]
[402344134,1768661463377,-500.0,0.00016712,3]
[402344136,1768661463387,-500.0,0.00016712,3]
[402344138,1768661463396,-500.0,0.00016712,3]
[402344140,1768661463405,-766.87,0.00016712,3]
[402344142,1768661463415,-500.0,0.00016712,3]
[402344143,1768661463424,-500.0,0.00016712,3]
[402344146,1768661463434,-1439.36,0.00016712,3]
[402344148,1768661463443,-500.0,0.00016712,3]
[402344150,1768661463454,-500.0,0.00016712,3]
[402344152,1768661463464,-500.0,0.00016712,3]
[402344154,1768661463474,-500.0,0.00016712,3]
[402344156,1768661463483,-1279.22,0.00016712,3]
[402344157,1768661463492,-500.0,0.00016712,3]
[402344159,1768661463501,-500.0,0.00016712,3]
[402344161,1768661463511,-500.0,0.00016712,3]
[402344163,1768661463520,-1550.67,0.00016712,3]
[402344165,1768661463530,-500.0,0.00016712,3]
[402344167,1768661463539,-500.0,0.00016712,3]
[402344169,1768661463548,-501.86,0.00016712,3]
[402344171,1768661463557,-500.0,0.00016712,3]
[402344173,1768661463566,-500.0,0.00016712,3]
[402344175,1768661463575,-2019.61,0.00016712,3]
[402344177,1768661463585,-1079.9,0.00016712,3]
[402344179,1768661463595,-928.59,0.00016712,3]
[402344181,1768661463604,-500.0,0.00016712,3]
[402344183,1768661463613,-567.14,0.00016712,3]
[402344185,1768661463622,-500.0,0.00016712,3]
[402344187,1768661463631,-500.0,0.00016712,3]
[402344189,1768661463640,-500.0,0.00016712,3]
[402344191,1768661463649,-923.36,0.00016712,3]
[402344193,1768661463658,-1739.47,0.00016712,3]
[402344195,1768661463667,-605.62,0.00016712,3]
[402344197,1768661463677,-1493.1,0.00016712,3]
[402344199,1768661463686,-500.0,0.00016712,3]
[402344201,1768661463696,-500.0,0.00016712,3]
[402344203,1768661463706,-500.0,0.00016712,3]
[402344205,1768661463718,-1147.52,0.00016712,3]
[402344207,1768661463727,-499.59360928,0.00016712,3]
[402344209,1768661463737,-500.0,0.00016712,3]
[402344211,1768661463746,-500.0,0.00016712,3]
[402344213,1768661463755,-1469.78,0.00016712,3]
[402344215,1768661463765,-588.68,0.00016712,3]
[402344217,1768661463774,-603.4,0.00016712,3]
[402344219,1768661463784,-1684.82,0.00016712,3]
[402344221,1768661463794,-500.0,0.00016712,3]